[Event "Israel National League 2024"]
[Site "Israel"]
[Date "2024.01.19"]
[Round "3.27"]
[White "Gorodetzky, Matan"]
[Black "Yaniv, Yuval"]
[Result "1/2-1/2"]
[ECO "C01"]
[WhiteElo "2325"]
[BlackElo "2383"]
[Annotator "RC"]
[PlyCount "110"]
[EventDate "2024.01.07"]
[EventType "team-tourn"]
[EventCountry "ISR"]
[SourceTitle "playchess.com"]
[Source "ChessBase"]
[SourceQuality "1"]
[TimeControl "40/5400+30:1800+30"]

1. e4 {[%emt 0:03:37]} e6 {[%emt 0:00:21]} 2. d4 {[%emt 0:00:13]} d5 {[%emt 0:00:16]} 3. Nc3 {[%emt 0:00:04]} Bb4 {[%emt 0:00:23]} 4. exd5 {[%emt 0:00:32]} exd5 {[%emt 0:00:08]} 5. Bd3 {[%emt 0:00:11]} Nf6 {[%emt 0:01:35]} 6. Nge2 {[%emt 0:01:45]} O-O {[%emt 0:04:42]} 7. Bg5 {[%emt 0:02:31]} c6 {[%emt 0:04:11]} 8. Qd2 {[%emt 0:01:49]} b5 {[%emt 0:25:22]} 9. f3 {[%emt 0:01:29]} a5 {[%emt 0:05:11]} 10. g4 {[%emt 0:14:13]} Be7 {[%emt 0:04:50]} 11. h4 {[%emt 0:05:47]} Re8 {[%emt 0:05:00]} 12. O-O-O {[%emt 0:05:29]} a4 {[%emt 0:05:23]} 13. Nb1 {[%emt 0:05:26]} b4 {[%emt 0:06:55]} 14. Ng3 {[%emt 0:03:51]} Na6 {[%emt 0:06:44]} 15. Rde1 {[%emt 0:01:26]} Be6 {[%emt 0:05:51]} 16. Bf5 {[%emt 0:07:01]} b3 {[%emt 0:10:04]} 17. a3 {[%emt 0:02:41]} bxc2 {[%emt 0:02:21]} 18. Bxc2 {[%emt 0:07:33]} c5 {[%emt 0:00:53]} 19. Qd3 {[%emt 0:06:45]} c4 {[%emt 0:00:06]} 20. Qd2 {[%emt 0:00:19]} Rb8 {[%emt 0:01:07]} 21. Bxa4 {[%emt 0:01:33]} Rf8 {[%emt 0:05:26]} 22. Bf4 {[%emt 0:02:12]} Rb6 {[%emt 0:02:18]} 23. Nc3 {[%emt 0:01:14]} Ne8 {[%emt 0:00:33]} 24. Bc2 {[%emt 0:05:22]} Nac7 {[%emt 0:00:34]} 25. Bb1 {[%emt 0:00:30]} Nb5 {[%emt 0:01:19]} 26. Qc2 {[%emt 0:01:37]} g6 {[%emt 0:00:01]} 27. Nxb5 {[%emt 0:01:41]} Rxb5 {[%emt 0:00:01]} 28. Ne2 {[%emt 0:02:38]} Bd6 {[%emt 0:01:51]} 29. Bh6 {[%emt 0:02:03]} Qb8 {[%emt 0:00:22]} 30. Ba2 {[%emt 0:02:00]} Ng7 {[%emt 0:00:29]} 31. Qd2 {[%emt 0:00:35]} Rb7 {[%emt 0:01:05]} 32. h5 {[%emt 0:01:04]} f5 {[%emt 0:00:35]} 33. hxg6 {[%emt 0:08:53]} fxg4 {[%emt 0:00:22]} 34. gxh7+ {[%emt 0:00:35]} Kh8 {[%emt 0:00:00]} 35. f4 {[%emt 0:00:51]} Nf5 {[%emt 0:01:06]} 36. Bg5 {[%emt 0:00:12]} Qa7 {[%emt 0:00:21]} 37. Qc3 {[%emt 0:01:22]} Bb4 {[%emt 0:00:39]} 38. axb4 {[%emt 0:00:40]} Qxa2 {[%emt 0:00:01]} 39. Qa3 {[%emt 0:01:33]} Qxa3 {[%emt 0:00:48]} 40. bxa3 {[%emt 0:00:01]} Rxh7 {[%emt 0:00:21]} 41. Rhg1 {[%emt 0:08:15]} Rh3 {[%emt 0:02:57]} 42. Rxg4 {[%emt 0:03:51]} Rxa3 {[%emt 0:07:57]} 43. Rh1+ {[%emt 0:02:35]} Kg8 {[%emt 0:00:08]} 44. Be7+ {[%emt 0:01:29]} Ng7 {[%emt 0:00:50]} 45. Rxg7+ {[%emt 0:00:59]} Kxg7 {[%emt 0:00:09]} 46. Bxf8+ {[%emt 0:00:04]} Kxf8 {[%emt 0:00:06]} 47. Rh5 {[%emt 0:03:09]} Bg4 {[%emt 0:07:15]} 48. Re5 {[%emt 0:00:07]} Rb3 {[%emt 0:04:14]} 49. Kc2 {[%emt 0:00:15]} Bxe2 {[%emt 0:00:24]} 50. Rxe2 {[%emt 0:00:02]} Rxb4 {[%emt 0:00:07]} 51. Re6 {[%emt 0:01:14]} Kf7 {[%emt 0:01:13]} 52. f5 {[%emt 0:00:53]} Rb3 {[%emt 0:01:06]} 53. Rd6 {[%emt 0:01:49]} Rb5 {[%emt 0:00:18]} 54. Rc6 {[%emt 0:00:37]} Rb8 {[%emt 0:00:48]} 55. Rd6 {[%emt 0:00:25]} Rb5 {[%emt 0:00:02]} 1/2-1/2

[Event "Israel National League 2024"]
[Site "Israel"]
[Date "2024.01.19"]
[Round "3.28"]
[White "Efroimski, Marsel"]
[Black "Gladyszev, Oleg"]
[Result "1-0"]
[ECO "B31"]
[WhiteElo "2434"]
[BlackElo "2410"]
[Annotator "RC"]
[PlyCount "93"]
[EventDate "2024.01.07"]
[EventType "team-tourn"]
[EventCountry "ISR"]
[SourceTitle "playchess.com"]
[Source "ChessBase"]
[SourceQuality "1"]
[TimeControl "40/5400+30:1800+30"]

1. e4 {[%emt 0:00:04]} c5 {[%emt 0:03:31]} 2. Nf3 {[%emt 0:00:24]} Nc6 {[%emt 0:00:05]} 3. Bb5 {[%emt 0:00:05]} g6 {[%emt 0:00:08]} 4. Bxc6 {[%emt 0:00:47]} dxc6 {[%emt 0:00:07]} 5. d3 {[%emt 0:00:13]} Bg7 {[%emt 0:00:06]} 6. Nc3 {[%emt 0:00:06]} Nf6 {[%emt 0:02:51]} 7. h3 {[%emt 0:00:14]} O-O {[%emt 0:00:09]} 8. O-O {[%emt 0:00:10]} Re8 {[%emt 0:14:26]} 9. Be3 {[%emt 0:01:02]} b6 {[%emt 0:00:14]} 10. a4 {[%emt 0:00:04]} a5 {[%emt 0:00:11]} 11. Qd2 {[%emt 0:00:13]} e5 {[%emt 0:00:32]} 12. Bh6 {[%emt 0:00:05]} Nh5 {[%emt 0:05:08]} 13. Ne2 {[%emt 0:01:40]} Bxh6 {[%emt 0:09:37]} 14. Qxh6 {[%emt 0:00:02]} Qf6 {[%emt 0:00:35]} 15. Ng5 {[%emt 0:19:42]} Qg7 {[%emt 0:00:28]} 16. Qxg7+ {[%emt 0:00:08]} Kxg7 {[%emt 0:00:30]} 17. Nf3 {[%emt 0:00:15]} f6 {[%emt 0:11:40]} 18. Nd2 {[%emt 0:11:40]} g5 {[%emt 0:09:24]} 19. Kh2 {[%emt 0:13:08]} Nf4 {[%emt 0:02:30]} 20. Nxf4 {[%emt 0:10:28]} exf4 {[%emt 0:09:16]} 21. g3 {[%emt 0:01:22]} fxg3+ {[%emt 0:07:36]} 22. fxg3 {[%emt 0:00:22]} Be6 {[%emt 0:00:06]} 23. Rf2 {[%emt 0:01:40]} Rf8 {[%emt 0:00:51]} 24. b3 {[%emt 0:02:12]} b5 {[%emt 0:05:25]} 25. g4 {[%emt 0:03:29]} h5 {[%emt 0:01:36]} 26. Kg3 {[%emt 0:04:27]} hxg4 {[%emt 0:00:23]} 27. hxg4 {[%emt 0:00:01]} Rh8 {[%emt 0:00:13]} 28. Nf3 {[%emt 0:01:29]} Kg6 {[%emt 0:01:36]} 29. Raf1 {[%emt 0:03:56]} Raf8 {[%emt 0:00:26]} 30. Ra1 {[%emt 0:05:25]} Ra8 {[%emt 0:00:14]} 31. Raf1 {[%emt 0:07:18]} Raf8 {[%emt 0:00:06]} 32. axb5 {[%emt 0:02:01]} cxb5 {[%emt 0:00:05]} 33. d4 {[%emt 0:00:09]} cxd4 {[%emt 0:11:31]} 34. Nxd4 {[%emt 0:00:16]} Bd7 {[%emt 0:00:17]} 35. e5 {[%emt 0:00:38]} Bxg4 {[%emt 0:00:44]} 36. Rxf6+ {[%emt 0:00:14]} Rxf6 {[%emt 0:00:04]} 37. Rxf6+ {[%emt 0:00:05]} Kh5 {[%emt 0:01:44]} 38. Rf2 {[%emt 0:02:18]} Kg6 {[%emt 0:02:17]} 39. Rf6+ {[%emt 0:00:57]} Kh5 {[%emt 0:00:04]} 40. Rf2 {[%emt 0:02:04]} Kg6 {[%emt 0:00:02]} 41. Nxb5 {[%emt 0:34:47]} Bd7 {[%emt 0:34:12]} 42. Rf6+ {[%emt 0:00:00]} Kh5 {[%emt 0:00:00]} 43. Nd6 {[%emt 0:00:00]} a4 {[%emt 0:00:00]} 44. e6 {[%emt 0:00:00]} Bc6 {[%emt 0:00:00]} 45. Nf7 {[%emt 0:00:00]} Rh7 {[%emt 0:00:00]} 46. Ne5 {[%emt 0:00:00]} Bd5 {[%emt 0:00:00]} 47. Rf2 {[%emt 0:00:00]} 1-0

[Event "Israel National League 2024"]
[Site "Israel"]
[Date "2024.01.19"]
[Round "3.29"]
[White "Stolyarsky, Yegor"]
[Black "Zemach, Nadav"]
[Result "0-1"]
[ECO "D11"]
[WhiteElo "2111"]
[BlackElo "2384"]
[Annotator "RC"]
[PlyCount "66"]
[EventDate "2024.01.07"]
[EventType "team-tourn"]
[EventCountry "ISR"]
[SourceTitle "playchess.com"]
[Source "ChessBase"]
[SourceQuality "1"]
[TimeControl "40/5400+30:1800+30"]

1. d4 {[%emt 0:05:39]} d5 {[%emt 0:00:19]} 2. c4 {[%emt 0:00:32]} c6 {[%emt 0:00:08]} 3. Nf3 {[%emt 0:00:55]} Nf6 {[%emt 0:00:09]} 4. g3 {[%emt 0:01:02]} Bg4 {[%emt 0:00:20]} 5. Bg2 {[%emt 0:01:46]} e6 {[%emt 0:00:21]} 6. O-O {[%emt 0:02:16]} Nbd7 {[%emt 0:00:16]} 7. cxd5 {[%emt 0:06:06]} exd5 {[%emt 0:06:49]} 8. Bf4 {[%emt 0:16:07]} Be7 {[%emt 0:02:14]} 9. Nc3 {[%emt 0:04:08]} h6 {[%emt 0:03:10]} 10. Qd2 {[%emt 0:14:16]} O-O {[%emt 0:01:35]} 11. Rfc1 {[%emt 0:00:17]} Bf5 {[%emt 0:07:09]} 12. Qd1 {[%emt 0:08:28]} Rc8 {[%emt 0:07:54]} 13. Ne1 {[%emt 0:12:06]} Re8 {[%emt 0:02:31]} 14. f3 {[%emt 0:07:46]} Bf8 {[%emt 0:05:42]} 15. Qd2 {[%emt 0:00:23]} c5 {[%emt 0:01:52]} 16. g4 {[%emt 0:04:36]} Bh7 {[%emt 0:03:13]} 17. Kh1 {[%emt 0:01:00]} Qb6 {[%emt 0:03:55]} 18. Na4 {[%emt 0:07:22]} Qa6 {[%emt 0:00:51]} 19. Nc3 {[%emt 0:00:17]} cxd4 {[%emt 0:04:17]} 20. Qxd4 {[%emt 0:00:06]} Rc4 {[%emt 0:00:22]} 21. Qd2 {[%emt 0:00:35]} d4 {[%emt 0:00:33]} 22. Ne4 {[%emt 0:00:56]} Nxe4 {[%emt 0:02:16]} 23. fxe4 {[%emt 0:00:07]} Bxe4 {[%emt 0:00:56]} 24. Nf3 {[%emt 0:01:09]} Nf6 {[%emt 0:02:19]} 25. h3 {[%emt 0:01:21]} Nd5 {[%emt 0:02:44]} 26. Bg3 {[%emt 0:01:34]} Bb4 {[%emt 0:00:35]} 27. Qd1 {[%emt 0:00:07]} Ne3 {[%emt 0:00:14]} 28. Qg1 {[%emt 0:00:30]} Rxc1 {[%emt 0:00:08]} 29. Rxc1 {[%emt 0:00:20]} Qxe2 {[%emt 0:00:13]} 30. Qf2 {[%emt 0:00:24]} d3 {[%emt 0:00:49]} 31. Qxe2 {[%emt 0:00:39]} dxe2 {[%emt 0:00:06]} 32. Be1 {[%emt 0:00:48]} Rd8 {[%emt 0:01:37]} 33. Kh2 {[%emt 0:00:40]} Nxg2 {[%emt 0:00:49]} 0-1

[Event "Israel National League 2024"]
[Site "Israel"]
[Date "2024.01.19"]
[Round "3.30"]
[White "Lahav, Michal"]
[Black "Katkov, Michelle"]
[Result "1-0"]
[ECO "C95"]
[WhiteElo "2205"]
[BlackElo "2106"]
[Annotator "NA RC"]
[PlyCount "107"]
[EventDate "2024.01.07"]
[EventType "team-tourn"]
[EventCountry "ISR"]
[SourceTitle "playchess.com"]
[Source "ChessBase"]
[SourceQuality "1"]
[TimeControl "40/5400+30:1800+30"]

1. e4 {[%emt 0:00:38]} e5 {[%emt 0:00:07]} 2. Nf3 {[%emt 0:00:52]} Nc6 {[%emt 0:00:08]} 3. Bb5 {[%emt 0:00:03]} a6 {[%emt 0:00:18]} 4. Ba4 {[%emt 0:00:02]} Nf6 {[%emt 0:00:47]} 5. O-O {[%emt 0:00:04]} Be7 {[%emt 0:05:52]} 6. Re1 {[%emt 0:00:14]} b5 {[%emt 0:00:50]} 7. Bb3 {[%emt 0:00:04]} d6 {[%emt 0:00:44]} 8. c3 {[%emt 0:00:07]} O-O {[%emt 0:00:51]} 9. h3 {[%emt 0:00:21]} Nb8 {[%emt 0:03:42]} 10. d4 {[%emt 0:03:02]} Nbd7 {[%emt 0:01:09]} 11. Nbd2 {[%emt 0:00:29]} Bb7 {[%emt 0:03:38]} 12. Bc2 {[%emt 0:05:27]} Re8 {[%emt 0:09:55]} 13. a3 {[%emt 0:12:58]} Bf8 {[%emt 0:03:22]} 14. Bd3 {[%emt 0:04:53]} c5 {[%emt 0:02:32]} 15. d5 {[%emt 0:13:15]} c4 {[%emt 0:00:57]} 16. Bc2 {[%emt 0:03:19]} Nc5 {[%emt 0:03:35]} 17. Nf1 {[%emt 0:00:42]} Nfd7 {[%emt 0:08:55]} 18. g4 {[%emt 0:04:08]} a5 {[%emt 0:08:10]} 19. Ng3 {[%emt 0:01:51]} g6 {[%emt 0:00:41]} 20. Kh2 {[%emt 0:03:36]} Qb6 {[%emt 0:07:17]} 21. Be3 {[%emt 0:04:49]} Ba6 {[%emt 0:09:41]} 22. Rg1 {[%emt 0:05:16]} b4 {[%emt 0:06:35]} 23. Ba4 {[%emt 0:09:32]} Bb5 {[%emt 0:02:51]} 24. axb4 {[%emt 0:05:37]} axb4 {[%emt 0:00:18]} 25. cxb4 {[%emt 0:00:05]} Bxa4 {[%emt 0:00:52]} 26. Rxa4 {[%emt 0:00:07]} Rxa4 {[%emt 0:00:49]} 27. bxc5 {[%emt 0:00:04]} Qa6 {[%emt 0:07:56]} 28. c6 {[%emt 0:00:35]} Nb8 {[%emt 0:03:41]} 29. Qc1 {[%emt 0:08:22]} Qb5 {[%emt 0:05:39]} 30. Bh6 {[%emt 0:07:10]} Ra2 {[%emt 0:00:36]} 31. Bxf8 {[%emt 0:00:24]} Rxf8 {[%emt 0:01:18]} 32. Qh6 {[%emt 0:02:42]} Qxb2 {[%emt 0:00:14]} 33. Rg2 {[%emt 0:00:04]} Qxf2 {[%emt 0:02:16]} 34. Nh4 {[%emt 0:05:23]} Qf4 {[%emt 0:00:12]} 35. Qxf8+ {[%emt 0:00:03]} Kxf8 {[%emt 0:00:10]} 36. Rxa2 {[%emt 0:00:01]} Na6 {[%emt 0:01:16]} 37. Rxa6 {[%emt 0:00:46]} Qf2+ {[%emt 0:00:12]} 38. Ng2 {[%emt 0:00:06]} Qc5 {[%emt 0:00:38]} 39. Ra2 {[%emt 0:02:11]} Ke7 {[%emt 0:00:15]} 40. Rc2 {[%emt 0:00:33]} Kd8 {[%emt 0:00:48]} 41. Re2 {[%emt 0:11:07]} Qd4 {[%emt 0:03:51]} 42. Ne3 {[%emt 0:00:33]} Qd3 {[%emt 0:01:40]} 43. Kg2 {[%emt 0:01:50]} Kc7 {[%emt 0:06:15]} 44. g5 {[%emt 0:01:40]} Kd8 {[%emt 0:01:51]} 45. Kf3 {[%emt 0:00:30]} Qb3 {[%emt 0:02:33]} 46. Rc2 {[%emt 0:01:58]} c3 {[%emt 0:00:28]} 47. Ne2 {[%emt 0:00:22]} Qb1 {[%emt 0:00:08]} 48. Rc1 {[%emt 0:00:31]} Qb2 {[%emt 0:02:28]} 49. Rxc3 {[%emt 0:00:11]} Kc7 {[%emt 0:01:27]} 50. Rc1 {[%emt 0:01:11]} Qa2 {[%emt 0:00:50]} 51. Rh1 {[%emt 0:05:02]} Qb2 {[%emt 0:00:20]} 52. h4 {[%emt 0:00:19]} Qb8 {[%emt 0:01:39]} 53. Ra1 {[%emt 0:01:05]} Kc8 {[%emt 0:00:20]} 54. Kf2 {[%emt 0:00:54]} 1-0

[Event "Israel National League 2024"]
[Site "Israel"]
[Date "2024.01.19"]
[Round "3.31"]
[White "Boruchovsky, Avital"]
[Black "Rechlis, Gad"]
[Result "1-0"]
[ECO "E71"]
[WhiteElo "2528"]
[BlackElo "2473"]
[Annotator "TA"]
[PlyCount "71"]
[EventDate "2024.01.07"]
[EventType "team-tourn"]
[EventCountry "ISR"]
[SourceTitle "playchess.com"]
[Source "ChessBase"]
[SourceQuality "1"]
[TimeControl "40/5400+30:1800+30"]

{[%evp 11,71,34,50,31,27,17,31,29,38,36,46,50,58,52,65,79,80,81,69,52,52,60,48,29,47,43,38,30,39,0,-1,0,0,0,0,0,0,0,0,6,18,8,67,66,77,68,57,56,59,12,11,12,90,86,104,104,105,113,156,144,192,179]} 1. d4 {[%emt 0:02:36]} Nf6 {[%emt 0:29:46]} 2. c4 {[%emt 0:00:26]} g6 {[%emt 0:00:52]} 3. Nc3 {[%emt 0:00:22]} Bg7 {[%emt 0:00:08]} 4. e4 {[%emt 0:00:08]} d6 {[%emt 0:00:02]} 5. h3 {[%emt 0:00:08]} O-O {[%emt 0:00:38]} 6. Be3 {[%emt 0:00:18]} c5 {[%emt 0:12:00]} 7. d5 {[%emt 0:02:09] E71: King's Indian: 4 e4 d6 5 h3.} e6 {[%emt 0:00:20]} 8. Nf3 {[%emt 0:01:34]} exd5 {[%emt 0:00:37]} 9. exd5 {[%emt 0:00:19] White is slightly better. 9.cxd5 deserves study.} Bf5 {[%emt 0:02:55]} 10. Bd3 {[%emt 0:02:59]} Bxd3 {[%emt 0:12:18]} 11. Qxd3 {[%emt 0:00:58] [#]} Qb6 $146 {[%emt 0:00:22]} ({Predecessor:} 11... Re8 12. O-O Na6 13. Rfe1 Qd7 14. a3 Nc7 15. Bf4 a6 16. Nd2 b5 17. Nde4 Nxe4 18. Nxe4 bxc4 19. Qxc4 {½-½ Erigaisi,A (2627)-Sadhwani,R (2609) Tata Steel India Blitz 2021 (13)}) 12. Rb1 {[%emt 0:04:23]} Na6 {[%emt 0:02:04]} 13. O-O {[%emt 0:03:25]} Rfe8 {[%emt 0:03:47]} 14. a3 {[%emt 0:02:40]} Qd8 {[%emt 0:07:08]} 15. Rbe1 {[%emt 0:14:55] White is more active.} Qd7 {[%emt 0:05:29]} 16. Nd2 {[%emt 0:03:45]} Nc7 {[%emt 0:01:25]} 17. Re2 {[%emt 0:14:13]} Re7 {[%emt 0:07:39]} 18. Rfe1 {[%emt 0:00:42]} Rae8 {[%emt 0:00:14]} 19. b3 {[%emt 0:11:09]} Nh5 {[%emt 0:05:16]} 20. Nb5 {[%emt 0:04:42]} Nxb5 {[%emt 0:03:43]} 21. cxb5 {[%emt 0:00:02]} Nf6 {[%emt 0:00:23]} 22. Kf1 $1 {[%emt 0:01:55]} Re5 {[%emt 0:00:38]} 23. Bf4 {[%emt 0:02:00]} Rf5 {[%emt 0:00:10]} (23... Rxd5 $2 24. Rxe8+ Nxe8 25. Qxd5 $18) 24. Ne4 {[%emt 0:01:44]} Nxe4 {[%emt 0:03:56]} ({Resist} 24... Rxf4 25. Nxf6+ Bxf6 26. Rxe8+ Kg7 27. R8e4 Rxe4 28. Rxe4 $16) (24... Nxd5 $2 25. Nxc5 (25. Nxd6 $2 {loses.} Rxe2 26. Qxe2 Rxf4 $19) 25... Rxe2 26. Nxd7 $18) 25. Rxe4 {[%emt 0:00:06]} Rxe4 {[%emt 0:00:10]} 26. Rxe4 {[%emt 0:00:07] aiming for g4.} Bd4 {[%emt 0:00:22]} (26... g5 $1 $11 27. Bxd6 Bd4 28. Re8+ Kg7 29. Bf8+ Kf6 30. Be7+ Kg7 31. Bf8+ Kf6) 27. g4 $1 $36 {[%emt 0:12:24][%mdl 2048] Black is under pressure.} Rxd5 {[%emt 0:00:28]} 28. Qc4 {[%emt 0:00:32]} Re5 {[%emt 0:00:55]} 29. Bxe5 {[%emt 0:00:06]} dxe5 {[%emt 0:00:01][%mdl 4096] Endgame KQR-KQB} 30. b4 {[%emt 0:02:33]} (30. Kg2 $14) 30... cxb4 $11 {[%emt 0:00:11]} 31. axb4 {[%emt 0:00:19]} Qd8 {[%emt 0:01:20] [#]} (31... h5 $11) 32. Kg2 $1 $16 {[%emt 0:02:16]} g5 {[%emt 0:00:32]} 33. Re2 {[%emt 0:00:48]} Kg7 {[%emt 0:00:18]} 34. Rc2 {[%emt 0:01:57]} h6 {[%emt 0:00:09]} 35. Qd3 {[%emt 0:02:24]} Qe7 {[%emt 0:01:01]} (35... Qd7 $16 36. Qf5 Qd5+ 37. Kh2 Qd6) 36. Qf5 {[%emt 0:02:02] Weighted Error Value: White=0.07 (flawless) /Black=0.15 (very precise)} 1-0

[Event "Israel National League 2024"]
[Site "Israel"]
[Date "2024.01.19"]
[Round "3.32"]
[White "Zoler, Dan"]
[Black "Gorshtein, Ido"]
[Result "1/2-1/2"]
[ECO "D43"]
[WhiteElo "2460"]
[BlackElo "2523"]
[Annotator "TA"]
[PlyCount "70"]
[EventDate "2024.01.07"]
[EventType "team-tourn"]
[EventCountry "ISR"]
[SourceTitle "playchess.com"]
[Source "ChessBase"]
[SourceQuality "1"]
[TimeControl "40/5400+30:1800+30"]

{[%evp 24,70,16,23,31,0,0,0,0,0,0,0,12,12,20,0,0,0,4,10,51,52,57,18,18,14,37,8,15,8,53,32,53,49,68,68,56,12,13,17,20,0,0,0,0,0,0,-13,-13]} 1. d4 {[%emt 0:11:11]} Nf6 {[%emt 0:00:07]} 2. c4 {[%emt 0:00:06]} e6 {[%emt 0:00:04]} 3. Nf3 {[%emt 0:00:15]} d5 {[%emt 0:00:03]} 4. Bg5 {[%emt 0:01:57]} h6 {[%emt 0:00:28]} 5. Bxf6 {[%emt 0:01:17]} Qxf6 {[%emt 0:00:09]} 6. Nc3 {[%emt 0:00:26]} c6 {[%emt 0:00:35]} 7. e3 {[%emt 0:02:37]} g6 {[%emt 0:00:12]} 8. Rc1 {[%emt 0:01:35]} Nd7 {[%emt 0:01:55]} 9. Bd3 {[%emt 0:02:13]} dxc4 {[%emt 0:01:45]} 10. Bxc4 {[%emt 0:05:38]} Bg7 {[%emt 0:01:13]} 11. O-O {[%emt 0:00:15]} O-O {[%emt 0:00:07]} 12. e4 {[%emt 0:02:29]} e5 {[%emt 0:01:59]} 13. d5 {[%emt 0:00:53]} Nb6 {[%emt 0:00:10] 13...Rd8 is not played anymore. D43: Semi-Slav: 5 Bg5 h6.} 14. Bb3 {[%emt 0:00:21]} (14. dxc6 $5 bxc6 15. Be2 $11) 14... Bg4 {[%emt 0:00:23]} 15. h3 {[%emt 0:03:04]} Bxf3 {[%emt 0:00:08]} 16. Qxf3 {[%emt 0:00:03]} Qxf3 {[%emt 0:00:09]} 17. gxf3 {[%emt 0:00:03]} Rfd8 {[%emt 0:03:31] was the old line (17...Rfc8).} 18. dxc6 {[%emt 0:09:47]} bxc6 {[%emt 0:00:21]} 19. Nd1 {[%emt 0:00:17]} Rac8 {[%emt 0:05:25]} 20. Ne3 {[%emt 0:06:43] [#]} h5 $146 {[%emt 0:10:07]} ({Predecessor:} 20... c5 21. Rc2 {½-½ Moise,O (2442)-Michalek,M (2462) EU-chT9 sf02 email 2011 [2]}) 21. Rc5 {[%emt 0:09:35]} Kf8 {[%emt 0:11:46]} (21... Bf8 $5 {[%cal Rf8c5]} 22. Rxe5 Rd2 $11) 22. Rfc1 {[%emt 0:02:05][%cal Bf1c1,Bc1c4,Bc4a4][%mdl 32]} Rd6 {[%emt 0:00:19]} 23. Nc4 {[%emt 0:17:30]} Nxc4 {[%emt 0:00:25]} 24. R1xc4 {[%emt 0:00:33]} Ke7 {[%emt 0:04:01]} 25. Ra4 {[%emt 0:02:53]} Rc7 {[%emt 0:00:46]} 26. Ra6 {[%emt 0:00:44]} f6 {[%emt 0:15:34]} 27. Rca5 {[%emt 0:03:30]} Bh6 {[%emt 0:07:21]} 28. Rxa7 {[%emt 0:00:31]} Rxa7 {[%emt 0:00:41]} 29. Rxa7+ $14 {[%emt 0:00:03][%mdl 4096] Endgame KRB-KRB} Kd8 {[%emt 0:01:07]} 30. Bf7 {[%emt 0:05:46]} Rd1+ {[%emt 0:01:42] The position is equal.} 31. Kg2 {[%emt 0:00:04]} Rd2 {[%emt 0:00:35]} 32. b3 {[%emt 0:06:15]} Be3 {[%emt 0:03:14]} 33. Ra8+ {[%emt 0:00:02]} Kc7 {[%emt 0:01:14]} 34. Bxg6 {[%emt 0:00:29]} h4 {[%emt 0:00:10]} 35. Kf1 {[%emt 0:00:22]} Rxf2+ {[%emt 0:01:24] Weighted Error Value: White=0.13 (very precise) /Black=0.08 (flawless)} 1/2-1/2

[Event "Israel National League 2024"]
[Site "Israel"]
[Date "2024.01.19"]
[Round "3.33"]
[White "Rozen, Eytan"]
[Black "Manor, Ilan"]
[Result "1-0"]
[ECO "B22"]
[WhiteElo "2462"]
[BlackElo "2469"]
[Annotator "RC"]
[PlyCount "71"]
[EventDate "2024.01.07"]
[EventType "team-tourn"]
[EventCountry "ISR"]
[SourceTitle "playchess.com"]
[Source "ChessBase"]
[SourceQuality "1"]
[TimeControl "40/5400+30:1800+30"]

1. e4 {[%emt 0:00:08]} c5 {[%emt 0:03:48]} 2. Nf3 {[%emt 0:00:14]} e6 {[%emt 0:01:26]} 3. c3 {[%emt 0:01:15]} Nf6 {[%emt 0:02:09]} 4. e5 {[%emt 0:00:10]} Nd5 {[%emt 0:00:05]} 5. a3 {[%emt 0:00:02]} d6 {[%emt 0:01:21]} 6. d4 {[%emt 0:00:04]} cxd4 {[%emt 0:00:49]} 7. c4 {[%emt 0:00:09]} Nb6 {[%emt 0:07:23]} 8. Bg5 {[%emt 0:01:05]} Qc7 {[%emt 0:06:16]} 9. exd6 {[%emt 0:02:21]} Bxd6 {[%emt 0:02:24]} 10. Qxd4 {[%emt 0:01:28]} O-O {[%emt 0:17:37]} 11. Nc3 {[%emt 0:06:43]} Nc6 {[%emt 0:01:04]} 12. Qe3 {[%emt 0:04:36]} Be7 {[%emt 0:04:53]} 13. Bf4 {[%emt 0:13:53]} e5 {[%emt 0:00:04]} 14. Nxe5 {[%emt 0:06:42]} Nxe5 {[%emt 0:00:05]} 15. Bxe5 {[%emt 0:14:38]} Qc6 {[%emt 0:00:06]} 16. Qe4 {[%emt 0:04:11]} Qxe4+ {[%emt 0:04:15]} 17. Nxe4 {[%emt 0:00:18]} Re8 {[%emt 0:00:04]} 18. O-O-O {[%emt 0:06:09]} Bf8 {[%emt 0:12:44]} 19. f4 {[%emt 0:00:53]} Bg4 {[%emt 0:01:06]} 20. Rd4 {[%emt 0:02:23]} f6 {[%emt 0:12:44]} 21. Bc7 {[%emt 0:02:38]} Na4 {[%emt 0:01:40]} 22. Bd3 {[%emt 0:17:29]} Rac8 {[%emt 0:09:26]} 23. Bd6 {[%emt 0:04:13]} Red8 {[%emt 0:05:22]} 24. f5 {[%emt 0:04:55]} Bxf5 {[%emt 0:02:18]} 25. Nxf6+ {[%emt 0:00:27]} gxf6 {[%emt 0:00:34]} 26. Bxf5 {[%emt 0:00:05]} Rc6 {[%emt 0:00:02]} 27. Rg4+ {[%emt 0:01:51]} Kf7 {[%emt 0:02:26]} 28. Bxf8 {[%emt 0:00:17]} Kxf8 {[%emt 0:00:49]} 29. Bxh7 {[%emt 0:00:40]} Rdc8 {[%emt 0:00:59]} 30. b3 {[%emt 0:02:11]} Nc5 {[%emt 0:00:34]} 31. Rg8+ {[%emt 0:01:13]} Kf7 {[%emt 0:00:04]} 32. Rxc8 {[%emt 0:00:06]} Rxc8 {[%emt 0:00:26]} 33. Bc2 {[%emt 0:00:12]} Re8 {[%emt 0:00:32]} 34. b4 {[%emt 0:00:28]} Ne6 {[%emt 0:00:08]} 35. Re1 {[%emt 0:00:17]} Rh8 {[%emt 0:00:17]} 36. Be4 {[%emt 0:00:25]} 1-0

[Event "Israel National League 2024"]
[Site "Israel"]
[Date "2024.01.19"]
[Round "3.34"]
[White "Zifroni, Dov"]
[Black "Rozentalis, Eduardas"]
[Result "1/2-1/2"]
[ECO "E06"]
[WhiteElo "2462"]
[BlackElo "2455"]
[Annotator "RC"]
[PlyCount "42"]
[EventDate "2024.01.07"]
[EventType "team-tourn"]
[EventCountry "ISR"]
[SourceTitle "playchess.com"]
[Source "ChessBase"]
[SourceQuality "1"]
[TimeControl "40/5400+30:1800+30"]

1. Nf3 {[%emt 0:02:26]} Nf6 {[%emt 0:00:23]} 2. c4 {[%emt 0:00:10]} e6 {[%emt 0:00:00]} 3. g3 {[%emt 0:03:04]} d5 {[%emt 0:00:26]} 4. Bg2 {[%emt 0:00:45]} Be7 {[%emt 0:00:19]} 5. O-O {[%emt 0:00:14]} O-O {[%emt 0:00:41]} 6. d4 {[%emt 0:01:14]} a5 {[%emt 0:00:33]} 7. Nc3 {[%emt 0:07:33]} c6 {[%emt 0:00:23]} 8. Re1 {[%emt 0:22:14]} b6 {[%emt 0:12:19]} 9. Ne5 {[%emt 0:04:24]} Nfd7 {[%emt 0:03:10]} 10. Nxd7 {[%emt 0:01:25]} Nxd7 {[%emt 0:03:14]} 11. cxd5 {[%emt 0:03:03]} cxd5 {[%emt 0:02:06]} 12. e4 {[%emt 0:01:14]} Nf6 {[%emt 0:00:55]} 13. e5 {[%emt 0:02:58]} Ne8 {[%emt 0:01:59]} 14. Bf4 {[%emt 0:02:29]} Ba6 {[%emt 0:03:36]} 15. Rc1 {[%emt 0:01:27]} Nc7 {[%emt 0:12:39]} 16. h4 {[%emt 0:03:06]} Qd7 {[%emt 0:05:20]} 17. Bg5 {[%emt 0:25:42]} Rfc8 {[%emt 0:12:11]} 18. Bxe7 {[%emt 0:00:24]} Qxe7 {[%emt 0:00:11]} 19. Qd2 {[%emt 0:01:05]} Bc4 {[%emt 0:17:13]} 20. b3 {[%emt 0:03:52]} Bb5 {[%emt 0:01:44]} 21. Rc2 {[%emt 0:00:42]} Bd7 {[%emt 0:02:52]} 1/2-1/2